fUSD/lending_fUSD_20250507
["ID","MTS","AMOUNT","RATE_DAILY","PERIOD"]
[360234490,1746643845766,-450.0,0.00019996,2]
[360234491,1746643845776,-500.0,0.00019997,2]
[360234492,1746643845785,-500.0,0.00019997,2]
[360234493,1746643845796,-450.0,0.00019997,2]
[360234494,1746643845807,-450.0,0.00019997,2]
[360234495,1746643845816,-450.0,0.00019997,2]
[360234496,1746643845826,-450.0,0.00019997,2]
[360234497,1746643845837,-450.0,0.00019997,2]
[360234498,1746643845847,-450.0,0.00019997,2]
[360234499,1746643845856,-450.0,0.00019997,2]
[360234500,1746643845866,-450.0,0.00019997,2]
[360234501,1746643845876,-274.33482507,0.00019997,2]
[360234502,1746643845886,-453.23,0.00019997,2]
[360234503,1746643845895,-450.0,0.00019997,2]
[360234504,1746643845906,-450.0,0.00019997,2]
[360234505,1746643845915,-450.0,0.00019997,2]
[360234506,1746643845925,-450.0,0.00019997,2]
[360234507,1746643845935,-450.0,0.00019997,2]
[360234508,1746643845944,-160.49592352,0.00019997,2]
[360234509,1746643845954,-470.0,0.00019997,2]
[360234510,1746643845963,-450.0,0.00019997,2]
[360234511,1746643845973,-450.0,0.00019997,2]
[360234512,1746643845984,-450.0,0.00019997,2]
[360234513,1746643845995,-450.0,0.00019997,2]
[360234514,1746643846004,-450.0,0.00019997,2]
[360234515,1746643846014,-576.54,0.00019997,2]
[360234516,1746643846024,-450.0,0.00019997,2]
[360234517,1746643846034,-450.0,0.00019997,2]
[360234518,1746643846046,-500.0,0.00019998,2]
[360234519,1746643846056,-500.0,0.00019998,2]
[360234520,1746643846066,-500.0,0.00019998,2]
[360234521,1746643846075,-500.0,0.00019998,2]
[360234522,1746643846085,-500.0,0.00019998,2]
[360234523,1746643846095,-252.13458124,0.00019998,2]
[360234524,1746643846104,-376.59,0.00019998,2]
[360234525,1746643846115,-1569.36,0.00019998,2]
[360234526,1746643846125,-337.55,0.00019998,2]
[360234527,1746643846135,-465.04,0.00019998,2]
[360234528,1746643846144,-450.0,0.00019998,2]
[360234529,1746643846154,-556.97,0.00019998,2]
[360234530,1746643846163,-450.0,0.00019998,2]
[360234531,1746643846173,-554.11084385,0.00019998,2]
[360234532,1746643846183,-160.97,0.00019998,2]
[360234533,1746643846193,-450.0,0.00019998,2]
[360234534,1746643846202,-450.0,0.00019998,2]
[360234535,1746643846212,-519.53719311,0.00019998,2]
[360234536,1746643846222,-450.0,0.00019998,2]
[360234537,1746643846231,-450.0,0.00019998,2]
[360234539,1746643846241,-176.53,0.00019998,2]
[360234541,1746643846254,-290.63,0.00019998,2]
[360234543,1746643846263,-450.0,0.00019998,2]
[360234545,1746643846273,-450.0,0.00019998,2]
[360234547,1746643846282,-450.0,0.00019998,2]
[360234548,1746643846292,-450.0,0.00019998,2]
[360234549,1746643846302,-450.0,0.00019998,2]
[360234550,1746643846312,-484.70769315,0.00019998,2]
[360234551,1746643846323,-450.0,0.00019998,2]
[360234552,1746643846332,-450.0,0.00019998,2]
[360234553,1746643846342,-450.0,0.00019998,2]
[360234554,1746643846352,-450.0,0.00019998,2]
[360234555,1746643846362,-470.25,0.00019998,2]
[360234556,1746643846371,-278.91,0.00019998,2]
[360234557,1746643846381,-450.0,0.00019998,2]
[360234558,1746643846391,-450.0,0.00019998,2]
[360234559,1746643846401,-450.0,0.00019998,2]
[360234560,1746643846410,-450.0,0.00019998,2]
[360234561,1746643846420,-450.0,0.00019998,2]
[360234562,1746643846430,-450.0,0.00019998,2]
[360234563,1746643846440,-462.04815666,0.00019998,2]
[360234564,1746643846450,-450.0,0.00019998,2]
[360234565,1746643846459,-592.25,0.00019998,2]
[360234566,1746643846469,-450.0,0.00019998,2]
[360234567,1746643846478,-384.04,0.00019998,2]
[360234568,1746643846488,-450.0,0.00019998,2]
[360234569,1746643846500,-478.6,0.00019998,2]
[360234570,1746643846510,-450.0,0.00019998,2]
[360234571,1746643846519,-450.0,0.00019998,2]
[360234572,1746643846529,-450.0,0.00019998,2]
[360234573,1746643846538,-1521.67,0.00019998,2]
[360234574,1746643846548,-1521.67,0.00019998,2]
[360234575,1746643846558,-430.11,0.00019998,2]
[360234576,1746643846568,-450.0,0.00019998,2]
[360234577,1746643846578,-450.0,0.00019998,2]
[360234578,1746643846588,-450.0,0.00019998,2]
[360234579,1746643846598,-450.0,0.00019998,2]
[360234580,1746643846608,-3394.5,0.00019998,2]
[360234581,1746643846618,-3394.5,0.00019998,2]
[360234582,1746643846627,-450.0,0.00019998,2]
[360234583,1746643846637,-450.0,0.00019998,2]
[360234584,1746643846646,-450.0,0.00019998,2]
[360234585,1746643846656,-450.0,0.00019998,2]
[360234586,1746643846665,-2300.41,0.00019998,2]
[360234587,1746643846677,-2300.41,0.00019998,2]
[360234588,1746643846687,-450.0,0.00019998,2]
[360234589,1746643846697,-290.61733257,0.00019998,2]
[360234590,1746643846885,-260.72266743,0.00019998,2]
[360234591,1746643846895,-107.44732257,0.00019998,2]
[360234592,1746643846907,-342.55267743,0.00019998,2]
[360234593,1746643846916,-450.0,0.00019998,2]
[360234594,1746643846926,-450.0,0.00019998,2]
[360234595,1746643846935,-449.08324755,0.00019998,2]
[360234596,1746643846947,-0.91675245,0.00019998,2]
[360234597,1746643846958,-340.94904122,0.00019998,2]
[360234599,1746643846973,-37.69368665,0.00019998,2]
[360234601,1746643846982,-3153.69908107,0.00019998,2]
[360234605,1746643847008,-497.18677962,0.00019998,2]
[360234607,1746643847020,-8060.43413931,0.00019998,2]
[360234609,1746643847029,-11711.32,0.00019998,2]
[360234611,1746643847038,-587.83,0.00019998,2]
[360234613,1746643847048,-587.83,0.00019998,2]
[360234615,1746643847057,-450.0,0.00019998,2]
[360234617,1746643847066,-385.54,0.00019998,2]
[360234619,1746643847075,-500.0,0.00019999,2]
[360234621,1746643847085,-666.0,0.00019999,2]
[360234623,1746643847095,-4436.94691858,0.00019999,2]
[360234624,1746643847104,-151.0,0.00019999,2]
[360234625,1746643847114,-151.0,0.00019999,2]
[360234626,1746643847124,-237.963091,0.00019999,2]
[360234627,1746643847133,-2977.29551979,0.00019999,2]
[360234628,1746643847146,-9522.70448021,0.00019999,2]
[360234629,1746643847155,-151.0,0.00019999,2]
[360234630,1746643847167,-176.059345,0.00019999,2]
[360234631,1746643847179,-176.059345,0.00019999,2]
[360234632,1746643847188,-151.0,0.00019999,2]
[360234633,1746643847198,-192.24232682,0.00019999,2]
[360234634,1746643847209,-202.166594,0.00019999,2]
[360234635,1746643847220,-151.0,0.00019999,2]
[360234636,1746643847231,-151.0,0.00019999,2]
[360234637,1746643847240,-151.0,0.00019999,2]
[360234638,1746643847250,-151.0,0.00019999,2]
[360234639,1746643847261,-151.0,0.00019999,2]
[360234640,1746643847271,-450.0,0.00019999,2]
[360234641,1746643847281,-450.0,0.00019999,2]
[360234642,1746643847290,-450.0,0.00019999,2]
[360234643,1746643847300,-450.0,0.00019999,2]
[360234644,1746643847310,-450.0,0.00019999,2]
[360234645,1746643847320,-450.0,0.00019999,2]
[360234646,1746643847330,-450.0,0.00019999,2]
[360234647,1746643847340,-450.0,0.00019999,2]
[360234648,1746643847349,-278.71,0.00019999,2]
[360234649,1746643847360,-151.0,0.00019999,2]
[360234650,1746643847370,-151.0,0.00019999,2]
[360234651,1746643847380,-151.0,0.00019999,2]
[360234652,1746643847390,-151.0,0.00019999,2]
[360234653,1746643847400,-168.903321,0.00019999,2]
[360234654,1746643847409,-151.0,0.00019999,2]
[360234655,1746643847418,-167.133209,0.00019999,2]
[360234656,1746643847428,-151.0,0.00019999,2]
[360234657,1746643847440,-215.786363,0.00019999,2]
[360234658,1746643847450,-151.0,0.00019999,2]
[360234659,1746643847460,-167.133209,0.00019999,2]
[360234660,1746643847470,-450.0,0.00019999,2]
[360234661,1746643847480,-450.0,0.00019999,2]
[360234662,1746643847490,-151.0,0.00019999,2]
[360234663,1746643847500,-151.0,0.00019999,2]
[360234664,1746643847510,-151.0,0.00019999,2]
[360234665,1746643847519,-151.0,0.00019999,2]
[360234666,1746643847529,-151.0,0.00019999,2]
[360234667,1746643847539,-151.0,0.00019999,2]
[360234668,1746643847549,-362.9,0.00019999,2]
[360234669,1746643847560,-450.0,0.00019999,2]
[360234670,1746643847569,-450.0,0.00019999,2]
[360234671,1746643847579,-450.0,0.00019999,2]
[360234672,1746643847589,-450.0,0.00019999,2]
[360234673,1746643847599,-165.45,0.00019999,2]
[360234674,1746643847612,-234.635907,0.00019999,2]
[360234675,1746643847621,-151.0,0.00019999,2]
[360234676,1746643847631,-520.24831,0.00019999,2]
[360234677,1746643847640,-520.24831,0.00019999,2]
[360234678,1746643847650,-151.0,0.00019999,2]
[360234679,1746643847660,-569.37,0.00019999,2]
[360234680,1746643847671,-1521.67,0.00019999,2]
[360234681,1746643847681,-1521.67,0.00019999,2]
[360234682,1746643847692,-1521.67,0.00019999,2]
[360234683,1746643847702,-1521.67,0.00019999,2]
[360234684,1746643847713,-1521.67,0.00019999,2]
[360234685,1746643847723,-1521.67,0.00019999,2]
[360234686,1746643847734,-1521.67,0.00019999,2]
[360234687,1746643847745,-1521.67,0.00019999,2]
[360234688,1746643847755,-1521.67,0.00019999,2]
[360234689,1746643847767,-1521.67,0.00019999,2]
[360234690,1746643847778,-1521.67,0.00019999,2]
[360234691,1746643847787,-1521.67,0.00019999,2]
[360234692,1746643847797,-1521.67,0.00019999,2]
[360234693,1746643847807,-1521.67,0.00019999,2]
[360234694,1746643847818,-1521.67,0.00019999,2]
[360234695,1746643847828,-1521.67,0.00019999,2]
[360234696,1746643847838,-1521.67,0.00019999,2]
[360234697,1746643847848,-1521.67,0.00019999,2]
[360234698,1746643847859,-1521.67,0.00019999,2]
[360234699,1746643847869,-1521.67,0.00019999,2]
[360234700,1746643847879,-1521.67792088,0.00019999,2]
[360234701,1746643847889,-450.0,0.00019999,2]
[360234702,1746643847899,-450.0,0.00019999,2]
[360234703,1746643847910,-570.52,0.00019999,2]
[360234704,1746643847919,-450.0,0.00019999,2]
[360234705,1746643847930,-450.0,0.00019999,2]
[360234706,1746643847940,-261.7,0.00019999,2]
[360234707,1746643847950,-3394.5,0.00019999,2]
[360234708,1746643847960,-181.054676,0.00019999,2]
[360234709,1746643847970,-3394.5,0.00019999,2]
[360234710,1746643847981,-3394.5,0.00019999,2]
[360234711,1746643847992,-3394.5,0.00019999,2]
[360234712,1746643848003,-3394.5,0.00019999,2]
[360234713,1746643848012,-3394.5,0.00019999,2]
[360234714,1746643848022,-3394.5,0.00019999,2]
[360234715,1746643848032,-3394.5,0.00019999,2]
[360234716,1746643848042,-3394.5,0.00019999,2]
[360234717,1746643848052,-3394.5,0.00019999,2]
[360234718,1746643848061,-3394.5,0.00019999,2]
[360234719,1746643848071,-3394.5,0.00019999,2]
[360234720,1746643848081,-3394.5,0.00019999,2]
[360234721,1746643848091,-3394.5,0.00019999,2]
[360234722,1746643848101,-3394.5,0.00019999,2]
[360234723,1746643848111,-3394.5,0.00019999,2]
[360234724,1746643848121,-3394.5,0.00019999,2]
[360234725,1746643848130,-181.054676,0.00019999,2]
[360234726,1746643848140,-3394.5,0.00019999,2]
[360234727,1746643848151,-3394.5,0.00019999,2]
[360234728,1746643848160,-3394.5,0.00019999,2]
[360234729,1746643848171,-3394.60488878,0.00019999,2]
[360234730,1746643848181,-450.0,0.00019999,2]
[360234731,1746643848192,-450.0,0.00019999,2]
[360234732,1746643848202,-450.0,0.00019999,2]
[360234733,1746643848212,-450.0,0.00019999,2]
[360234734,1746643848222,-151.0,0.00019999,2]
[360234735,1746643848232,-450.0,0.00019999,2]
[360234736,1746643848242,-450.0,0.00019999,2]
[360234737,1746643848256,-450.0,0.00019999,2]
[360234738,1746643848266,-450.0,0.00019999,2]
[360234739,1746643848276,-450.0,0.00019999,2]
[360234740,1746643848286,-450.0,0.00019999,2]
[360234741,1746643848297,-450.0,0.00019999,2]
[360234742,1746643848307,-450.0,0.00019999,2]
[360234743,1746643848318,-340.31,0.00019999,2]
[360234744,1746643848328,-151.0,0.00019999,2]
[360234745,1746643848338,-151.0,0.00019999,2]
[360234746,1746643848348,-2300.41,0.00019999,2]
[360234747,1746643848358,-2300.41,0.00019999,2]
[360234748,1746643848369,-2300.41,0.00019999,2]
[360234749,1746643848379,-2300.41,0.00019999,2]
[360234750,1746643848390,-151.0,0.00019999,2]
[360234751,1746643848400,-2300.41,0.00019999,2]
[360234752,1746643848411,-2300.41,0.00019999,2]
[360234753,1746643848422,-2300.41,0.00019999,2]
[360234754,1746643848433,-2300.41,0.00019999,2]
[360234755,1746643848444,-2300.41,0.00019999,2]
[360234756,1746643848454,-2300.41,0.00019999,2]
[360234757,1746643848464,-2300.41,0.00019999,2]
[360234758,1746643848475,-2300.41,0.00019999,2]
[360234759,1746643848486,-2300.41,0.00019999,2]
[360234760,1746643848496,-2300.41,0.00019999,2]
[360234761,1746643848508,-2300.41,0.00019999,2]
[360234762,1746643848518,-2300.41,0.00019999,2]
[360234763,1746643848529,-2300.41,0.00019999,2]
[360234764,1746643848539,-2300.41,0.00019999,2]
[360234765,1746643848550,-2300.41,0.00019999,2]
[360234766,1746643848560,-2300.41,0.00019999,2]
[360234767,1746643848571,-2300.46232845,0.00019999,2]
[360234768,1746643848581,-450.0,0.00019999,2]
[360234769,1746643848592,-450.0,0.00019999,2]
[360234770,1746643848602,-364.67,0.00019999,2]
[360234771,1746643848612,-450.0,0.00019999,2]
[360234772,1746643848623,-450.0,0.00019999,2]
[360234773,1746643848633,-450.0,0.00019999,2]
[360234774,1746643848643,-450.0,0.00019999,2]
[360234775,1746643848653,-450.0,0.00019999,2]
[360234776,1746643848663,-450.0,0.00019999,2]
[360234777,1746643848674,-193.51,0.00019999,2]
[360234778,1746643848683,-151.0,0.00019999,2]
[360234779,1746643848692,-450.0,0.00019999,2]
[360234780,1746643848703,-450.0,0.00019999,2]
[360234781,1746643848712,-186.37988319,0.00019999,2]
[360234782,1746643848723,-577.135605,0.00019999,2]
[360234783,1746643848733,-577.135605,0.00019999,2]
[360234784,1746643848743,-150.0,0.00019999,2]
[360234785,1746643848755,-150.0,0.00019999,2]
[360234786,1746643848765,-450.0,0.00019999,2]
[360234787,1746643848778,-450.0,0.00019999,2]
[360234788,1746643848788,-450.0,0.00019999,2]
[360234789,1746643848799,-450.0,0.00019999,2]
[360234790,1746643848811,-450.0,0.00019999,2]
[360234791,1746643848821,-450.0,0.00019999,2]
[360234792,1746643848831,-450.0,0.00019999,2]
[360234793,1746643848841,-284.0499408,0.00019999,2]
[360234794,1746643848853,-151.0,0.00019999,2]
[360234795,1746643848863,-151.0,0.00019999,2]
[360234796,1746643848873,-11711.32,0.00019999,2]
[360234797,1746643848884,-11711.32,0.00019999,2]
[360234798,1746643848893,-11711.32,0.00019999,2]
[360234799,1746643848904,-11711.32,0.00019999,2]
[360234800,1746643848914,-11711.32,0.00019999,2]
[360234801,1746643848924,-587.83,0.00019999,2]
[360234802,1746643848934,-11711.32,0.00019999,2]
[360234803,1746643848945,-587.83,0.00019999,2]
[360234804,1746643848955,-151.0,0.00019999,2]
[360234805,1746643848965,-11711.32,0.00019999,2]
[360234806,1746643848975,-587.83,0.00019999,2]
[360234807,1746643848985,-587.83,0.00019999,2]
[360234808,1746643848995,-11711.32,0.00019999,2]
[360234809,1746643849007,-587.83,0.00019999,2]
[360234810,1746643849017,-587.83,0.00019999,2]
[360234811,1746643849027,-587.83,0.00019999,2]
[360234812,1746643849037,-587.83,0.00019999,2]
[360234813,1746643849048,-587.83,0.00019999,2]
[360234814,1746643849059,-587.83,0.00019999,2]
[360234815,1746643849069,-11711.32,0.00019999,2]
[360234816,1746643849079,-587.83,0.00019999,2]
[360234817,1746643849089,-11711.32,0.00019999,2]
[360234818,1746643849100,-587.83,0.00019999,2]
[360234819,1746643849110,-4341.28188985,0.00019999,2]
[360234820,1746643849127,-7370.03811015,0.00019999,2]
[360234821,1746643849137,-587.83,0.00019999,2]
[360234822,1746643849147,-587.83,0.00019999,2]
[360234823,1746643849157,-11711.32,0.00019999,2]
[360234824,1746643849167,-587.83,0.00019999,2]
[360234825,1746643849177,-11711.32,0.00019999,2]
[360234826,1746643849187,-587.83,0.00019999,2]
[360234827,1746643849198,-11711.32,0.00019999,2]
[360234828,1746643849209,-587.83,0.00019999,2]
[360234829,1746643849219,-11711.32,0.00019999,2]
[360234830,1746643849229,-587.83,0.00019999,2]
[360234831,1746643849239,-11711.32,0.00019999,2]
[360234832,1746643849250,-587.83,0.00019999,2]
[360234833,1746643849261,-587.83,0.00019999,2]
[360234834,1746643849271,-11711.32,0.00019999,2]
[360234835,1746643849283,-11711.32,0.00019999,2]
[360234836,1746643849295,-587.97007388,0.00019999,2]
[360234837,1746643849306,-11711.32,0.00019999,2]
[360234838,1746643849317,-11711.32,0.00019999,2]
[360234839,1746643849328,-11711.4069,0.00019999,2]
[360234840,1746643849338,-39814.79044046,0.00019999,2]
[360234841,1746643849513,-450.0,0.00019984,2]
[360234842,1746643849523,-156.791,0.00019992,2]
[360234843,1746643849533,-8643.20900006,0.00019999,2]
[360234844,1746643849545,-8393.66055948,0.00019999,2]
[360234845,1746643849555,-907.0,0.0002,2]
[360234846,1746643849565,-369.65428782,0.0002,2]
[360234847,1746643849578,-1817.1,0.0002,2]
[360234848,1746643849590,-1473.4,0.0002,2]
[360234849,1746643849603,-27680.59060375,0.0002,2]
[360234850,1746643849620,-147138.20637259,0.0002,2]
[360234851,1746643849632,-202421.86491498,0.0002,2]
[360234852,1746643849741,-3063.49041295,0.000199,2]
[360234853,1746643849754,-586.05,0.00019984,2]
[360234854,1746643849768,-5931.0,0.00019992,2]
[360234855,1746643849778,-151.0,0.00019999,2]
[360234856,1746643849790,-4771.20958705,0.0002,2]
[360234857,1746643849803,-539.3515475,0.0002,2]
[360234858,1746643849815,-144278.73850548,0.0002,2]
[360234859,1746643849846,-768.25579211,0.0002,2]
[360234860,1746643849858,-18702.17,0.0002,2]
[360234861,1746643961027,500.0,0.00019009,2]
[360234862,1746643977935,30000.0,0.0001899,2]
[360234863,1746644050036,150.0,0.00018986,7]
[360234864,1746644084238,8174.98887558,0.00019,2]
[360234865,1746644094887,212.54,0.00019109,2]
[360234866,1746644097714,157.16,0.00019108,2]
[360234867,1746644156210,1000.0,0.00019104,2]
[360234868,1746644339469,192.12,0.00019064,2]
[360234869,1746644375639,673.25,0.00017374,2]
[360234870,1746644455056,1076.0,0.000194,2]
[360234871,1746644663796,250.0,0.00018934,2]
[360234872,1746644694999,2732.17272599,0.00027,30]
[360234873,1746644765226,1849.08,0.00030137,120]
[360234874,1746644819638,207.9,0.0001894,2]
[360234875,1746644974565,250.0,0.00017,2]
[360234876,1746644975667,300.0,0.00019,2]
[360234885,1746645031370,-742.01575815,0.000196,2]
[360234887,1746645031423,-333.98424185,0.000196,2]
[360234888,1746645031434,-200.0,0.00019603,2]
[360234889,1746645031444,-87.20440467,0.00019606,2]
[360234890,1746645031530,-65.85975302,0.00019606,2]
[360234891,1746645031540,-200.0,0.00019634,2]
[360234892,1746645031549,-673.25,0.00019638,2]
[360234893,1746645031559,-150.0,0.00019735,2]
[360234894,1746645031570,-1200.0,0.00019797,2]
[360234895,1746645031581,-300.0,0.00019797,2]
[360234896,1746645031591,-25700.0,0.00019798,2]
[360234897,1746645031601,-151.0,0.00019798,2]
[360234898,1746645031610,-207.4,0.00019798,2]
[360234899,1746645031621,-668.65185757,0.00019798,2]
[360234900,1746645031632,-1076.0,0.000198,2]
[360234901,1746645031642,-150.0,0.00019806,2]
[360234902,1746645031651,-485.0,0.00019836,2]
[360234903,1746645031663,-927.41663719,0.00019897,2]
[360234904,1746645031673,-204.7312891,0.00019897,2]
[360234905,1746645031684,-335.05634402,0.00019898,2]
[360234906,1746645031694,-335.05634394,0.00019898,2]
[360234907,1746645031703,-335.05634394,0.00019898,2]
[360234908,1746645031717,-335.05634394,0.00019899,2]
[360234909,1746645031727,-335.05634394,0.00019899,2]
[360234910,1746645031737,-221.8019292,0.00019899,2]
[360234911,1746645031746,-335.05634394,0.00019899,2]
[360234913,1746645031756,-335.05634394,0.00019899,2]
[360234915,1746645031766,-335.05634394,0.000199,2]
[360234917,1746645031776,-335.05634394,0.000199,2]
[360234919,1746645031786,-401.8829475,0.000199,2]
[360234921,1746645031796,-184.04854354,0.000199,2]
[360234922,1746645031806,-249.65012844,0.000199,2]
[360234924,1746645031817,-335.05634394,0.000199,2]
[360234926,1746645031827,-3060.52464156,0.000199,2]
[360234928,1746645031837,-204.73128909,0.000199,2]
[360234930,1746645031849,-1826.25836993,0.000199,2]
[360234931,1746645031858,-231.36675296,0.000199,2]
[360234933,1746645031869,-519.69336788,0.000199,2]
[360234935,1746645031880,-542.79010508,0.000199,2]
[360234937,1746645031890,-6816.502,0.00019933,2]
[360234938,1746645031900,-4086.635,0.00019933,2]
[360234940,1746645031910,-878.0,0.00019933,2]
[360234942,1746645031919,-500.0,0.00019973,2]
[360234944,1746645031929,-500.0,0.00019973,2]
[360234946,1746645031939,-500.0,0.00019973,2]
[360234947,1746645031948,-505.41016265,0.00019973,2]
[360234949,1746645031959,-500.0,0.00019973,2]
[360234951,1746645031968,-1489.689,0.0001998,2]
[360234953,1746645031978,-439.59604345,0.00019983,2]
[360234955,1746645031987,-500.0,0.00019983,2]
[360234956,1746645031997,-401.39584113,0.00019983,2]
[360234958,1746645032006,-500.0,0.00019983,2]
[360234960,1746645032017,-500.0,0.00019983,2]
[360234962,1746645032027,-500.0,0.00019983,2]
[360234964,1746645032037,-500.0,0.00019983,2]
[360234966,1746645032047,-500.0,0.00019983,2]
[360234967,1746645032057,-500.0,0.00019983,2]
[360234969,1746645032066,-500.0,0.00019983,2]
[360234971,1746645032083,-500.0,0.00019983,2]
[360234973,1746645032093,-500.0,0.00019983,2]
[360234975,1746645032103,-500.0,0.00019983,2]
[360234977,1746645032113,-500.0,0.00019983,2]
[360234978,1746645032126,-500.0,0.00019983,2]
[360234980,1746645032135,-500.0,0.00019983,2]
[360234981,1746645032145,-500.0,0.00019983,2]
[360234982,1746645032155,-500.0,0.00019983,2]
[360234983,1746645032166,-500.0,0.00019983,2]
[360234984,1746645032175,-500.0,0.00019983,2]
[360234985,1746645032185,-500.0,0.00019983,2]
[360234986,1746645032195,-500.0,0.00019983,2]
[360234987,1746645032206,-500.0,0.00019983,2]
[360234988,1746645032216,-500.0,0.00019983,2]
[360234989,1746645032226,-500.0,0.00019983,2]
[360234990,1746645032236,-500.0,0.00019983,2]
[360234991,1746645032246,-500.0,0.00019983,2]
[360234992,1746645032256,-500.0,0.00019983,2]
[360234993,1746645032266,-500.0,0.00019983,2]
[360234994,1746645032276,-500.0,0.00019983,2]
[360234995,1746645032286,-500.0,0.00019983,2]
[360234996,1746645032297,-500.0,0.00019983,2]
[360234997,1746645032308,-500.0,0.00019983,2]
[360234998,1746645032319,-500.0,0.00019983,2]
[360234999,1746645032331,-500.0,0.00019983,2]
[360235000,1746645032341,-500.0,0.00019983,2]
[360235001,1746645032350,-500.0,0.00019983,2]
[360235002,1746645032360,-500.0,0.00019983,2]
[360235003,1746645032370,-500.0,0.00019983,2]
[360235004,1746645032380,-500.0,0.00019983,2]
[360235005,1746645032390,-500.0,0.00019983,2]
[360235006,1746645032399,-500.0,0.00019983,2]
[360235007,1746645032409,-500.0,0.00019983,2]
[360235008,1746645032418,-500.0,0.00019983,2]
[360235009,1746645032429,-500.0,0.00019983,2]
[360235010,1746645032438,-500.0,0.00019983,2]
[360235011,1746645032448,-500.0,0.00019983,2]
[360235012,1746645032458,-500.0,0.00019983,2]
[360235013,1746645032468,-500.0,0.00019983,2]
[360235014,1746645032477,-500.0,0.00019983,2]
[360235015,1746645032487,-500.0,0.00019983,2]
[360235016,1746645032497,-500.0,0.00019983,2]
[360235017,1746645032506,-500.0,0.00019983,2]
[360235018,1746645032516,-500.0,0.00019983,2]
[360235019,1746645032526,-500.0,0.00019983,2]
[360235020,1746645032536,-500.0,0.00019983,2]
[360235021,1746645032546,-500.0,0.00019983,2]
[360235022,1746645032557,-500.0,0.00019983,2]
[360235023,1746645032566,-433.43187341,0.00019983,2]
[360235024,1746645032577,-500.0,0.00019983,2]
[360235025,1746645032589,-500.0,0.00019983,2]
[360235026,1746645032599,-500.0,0.00019983,2]
[360235027,1746645032609,-500.0,0.00019983,2]
[360235028,1746645032619,-500.0,0.00019983,2]
[360235029,1746645032629,-500.0,0.00019983,2]
[360235030,1746645032638,-500.0,0.00019983,2]
[360235031,1746645032648,-500.0,0.00019983,2]
[360235032,1746645032657,-500.0,0.00019983,2]
[360235033,1746645032667,-500.0,0.00019983,2]
[360235034,1746645032677,-500.0,0.00019983,2]
[360235035,1746645032686,-500.0,0.00019983,2]
[360235036,1746645032696,-500.0,0.00019983,2]
[360235037,1746645032718,-500.0,0.00019983,2]
[360235038,1746645032728,-98.93790993,0.00019983,2]
[360235039,1746645032753,-401.06209007,0.00019983,2]
[360235040,1746645032763,-500.0,0.00019983,2]
[360235041,1746645032773,-308.09216303,0.00019983,2]
[360235042,1746645032786,-191.90783697,0.00019983,2]
[360235043,1746645032795,-330.09242155,0.00019983,2]
[360235044,1746645032808,-169.90757845,0.00019983,2]
[360235045,1746645032819,-500.0,0.00019983,2]
[360235046,1746645032830,-500.0,0.00019983,2]
[360235047,1746645032840,-500.0,0.00019983,2]
[360235048,1746645032850,-500.0,0.00019983,2]